bitfinex/quotes_ETHUSD_20250804
["timestamp","ask_amount","ask_price","bid_price","bid_amount"]
[1754316887280,8.85937604,3653.0,3652.9,0.002]
[1754316888618,1.136,3653.0,3652.9,0.002]
[1754316888915,4.556,3653.0,3652.9,0.002]
[1754316889111,4.556,3653.0,3652.9,2.73955098]
[1754316889283,4.556,3653.0,3652.9,0.002]
[1754316889479,0.9992,3653.5,3652.9,0.002]
[1754316889705,4.555,3653.4,3652.9,0.002]
[1754316889908,4.555,3653.3,3652.9,0.002]
[1754316890301,0.9992,3653.2,3652.9,0.002]
[1754316890584,0.9992,3653.2,3652.9,2.73955066]
[1754316890783,4.555,3653.3,3652.9,2.73955066]
[1754316890784,1.4291,3653.6,3652.9,2.73953323]
[1754316890985,1.4291,3653.6,3653.0,2.73742474]
[1754316891231,6.574,3653.8,3653.1,2.73740111]
[1754316891383,4.555,3653.5,3653.4,2.73717632]
[1754316891584,6.574,3653.8,3653.4,1.3678]
[1754316891782,4.554,3653.7,3653.6,2.73702649]
[1754316892318,0.001,3654.4,3654.0,2.7366676]
[1754316892522,4.554,3654.1,3652.9,0.002]
[1754316892691,0.9992,3654.0,3653.1,0.9378]
[1754316892894,0.9992,3654.0,3653.7,2.73694227]
[1754316893103,4.554,3654.1,3653.6,2.7370028]
[1754316893338,0.9992,3653.9,3653.6,2.7370028]
[1754316893546,5.5532,3654.1,3653.6,2.73699102]
[1754316893750,0.001,3654.4,3653.7,2.73688409]
[1754316893961,1.0002,3654.4,3653.8,2.73681285]
[1754316894111,4.553,3654.3,3653.7,2.73695158]
[1754316894317,4.553,3654.3,3653.9,2.73674631]
[1754316895254,0.001,3654.4,3653.6,1.3678]
[1754316895255,0.001,3654.4,3654.0,2.73672423]
[1754316895432,0.001,3654.4,3653.9,2.73677385]
[1754316895612,4.553,3654.3,3653.9,2.73677385]
[1754316895818,4.553,3654.3,3653.6,1.3678]
[1754316896019,8.28875559,3654.3,3653.7,2.73693408]
[1754316896248,5.5522,3654.3,3653.7,2.7369248]
[1754316896431,0.9992,3654.2,3653.2,0.002]
[1754316896730,4.552,3654.1,3653.5,2.7370545]
[1754316897058,4.552,3654.1,3653.6,2.73702497]
[1754316897217,1.0002,3654.4,3653.8,2.73687615]
[1754316897422,7.28850794,3654.3,3653.7,2.73693452]
[1754316897727,7.28850851,3654.3,3653.7,2.73693452]
[1754316897921,4.552,3654.3,3653.8,2.73686872]
[1754316898318,0.9992,3654.2,3653.5,2.73710066]
[1754316898515,0.9992,3654.2,3653.4,0.9378]
[1754316898721,0.001,3654.4,3654.0,2.73668951]
[1754316898922,4.551,3654.3,3653.9,2.73677361]
[1754316899357,0.001,3654.4,3654.3,2.7365022]
[1754316899536,0.001,3654.4,3654.0,0.9378]
[1754316899537,4.551,3654.2,3654.1,2.73665197]
[1754316899732,4.551,3654.2,3654.1,4.10445197]
[1754316899937,4.6878,3654.2,3654.1,4.10445197]
[1754316900280,8.85352122,3654.2,3653.5,2.73706881]
[1754316900420,2.73665904,3654.1,3653.1,1.3678]
[1754316900624,0.1368,3653.4,3653.3,2.73725125]
[1754316900859,0.1368,3653.4,3653.3,4.10505125]
[1754316901285,4.549,3654.3,3653.3,1.3678]
[1754316901562,0.001,3654.4,3654.3,2.7365022]
[1754316902024,4.6868,3654.4,3654.3,3.7352022]
[1754316902224,4.6868,3654.4,3654.3,2.7365022]
[1754316902424,4.6868,3654.4,3653.9,0.9987]
[1754316902425,4.6868,3654.4,3654.2,2.73652278]
[1754316902624,4.6868,3654.4,3653.8,0.4378]
[1754316902625,0.1368,3654.2,3653.3,0.4378]
[1754316902861,0.9424,3654.1,3653.2,1.0007]
[1754316903064,0.1368,3653.4,3653.3,2.73725125]
[1754316903772,0.1368,3653.4,3653.3,4.17375125]
[1754316904982,0.1368,3653.4,3653.3,3.17505125]
[1754316905183,0.1368,3653.4,3653.3,4.17375125]
[1754316905384,0.001,3654.4,3654.0,2.7366918]
[1754316905585,4.547,3654.3,3654.0,2.7366918]
[1754316905772,0.1368,3654.1,3654.0,2.73667722]
[1754316905971,0.1368,3654.1,3654.0,4.17317722]
[1754316906377,0.1368,3654.2,3654.0,4.17317722]
[1754316906691,0.001,3654.4,3654.3,2.7365022]
[1754316906861,0.1378,3654.4,3654.3,2.7365022]
[1754316907071,0.1378,3654.4,3654.3,4.1730022]
[1754316908157,0.001,3654.4,3654.3,4.1730022]
[1754316909070,1e-08,3654.4,3654.3,4.1730022]
[1754316909396,1e-08,3654.4,3654.3,23.96061949]
[1754316909597,1e-08,3654.4,3654.3,23.93325447]
[1754316909760,1e-08,3654.4,3654.3,7.8598022]
[1754316910077,1e-08,3654.8,3654.7,2.73620269]
[1754316910279,1e-08,3655.1,3655.0,2.73597811]
[1754316910481,1e-08,3655.6,3655.5,2.73560388]
[1754316910704,1e-08,3655.6,3655.1,2.73586256]
[1754316910705,1.2233621,3656.7,3656.6,2.73478094]
[1754316910998,0.109581,3657.0,3656.6,2.73478094]
[1754316910999,0.109581,3657.0,3656.9,2.73455659]
[1754316911216,0.9424,3657.8,3656.1,2.73515494]
[1754316911496,0.1368,3657.2,3656.7,1.4365]
[1754316911660,0.1368,3657.2,3656.5,2.73479831]
[1754316911661,0.9424,3657.2,3656.5,4.543]
[1754316912001,0.9424,3657.2,3657.1,2.7343965]
[1754316912200,0.1671,3657.7,3657.2,2.73429417]
[1754316912511,0.9424,3657.5,3657.0,2.73448181]
[1754316912717,1.1095,3657.4,3656.7,2.73469351]
[1754316912917,1.1095,3657.4,3656.8,2.73457154]
[1754316913066,0.9424,3657.4,3656.9,2.73455403]
[1754316913269,4.541,3657.5,3656.5,0.9987]
[1754316913525,0.9424,3657.7,3657.2,2.73431255]
[1754316913720,0.9424,3657.7,3656.6,0.4378]
[1754316913721,0.1368,3656.9,3656.8,2.73463137]
[1754316914024,0.1671,3658.2,3657.3,2.73423473]
[1754316914221,5.4834,3658.1,3657.7,2.73394549]
[1754316914384,0.9424,3658.1,3657.3,1.4365]
[1754316914704,0.1368,3657.5,3657.4,2.73418275]
[1754316914893,0.1368,3657.5,3657.0,5.9775]
[1754316915094,0.1368,3657.5,3657.4,2.73418275]
[1754316915468,0.1368,3657.5,3657.4,3.73288275]
[1754316915691,0.1368,3657.5,3657.4,4.17068275]
[1754316915916,0.0368,3657.5,3657.4,4.17068275]
[1754316916092,0.0368,3657.5,3657.4,3.17198275]
[1754316916304,0.0368,3657.5,3657.1,1.4365]
[1754316916626,0.0368,3657.5,3657.0,7.27348173]
[1754316916840,0.9424,3657.4,3656.5,2.73483032]
[1754316917015,0.1368,3657.1,3656.7,2.73468778]
[1754316917206,0.1368,3656.9,3656.8,2.73461431]
[1754316917625,0.1368,3656.9,3656.7,2.73470443]
[1754316917824,0.1368,3656.9,3656.4,1.4365]
[1754316917997,0.1368,3656.7,3656.6,2.73472995]
[1754316918198,0.1368,3656.7,3656.3,2.73499582]
[1754316918397,0.1368,3656.7,3656.5,2.73484214]
[1754316918628,0.1368,3656.7,3656.6,2.73478094]
[1754316919434,2.9012807,3657.5,3656.6,2.73478094]
[1754316919435,4.537,3657.5,3656.9,2.73449303]
[1754316919731,4.537,3657.5,3657.0,2.73448071]
[1754316919934,3.67636775,3657.7,3656.8,2.73462158]
[1754316919935,4.536,3657.6,3656.8,2.73463137]
[1754316920135,0.1368,3657.0,3656.9,2.73455659]
[1754316920335,5.4784,3657.7,3656.9,1.4365]
[1754316920508,0.1368,3657.2,3657.0,2.73448181]
[1754316920708,0.821601,3657.8,3657.5,2.7340545]
[1754316920913,0.821601,3657.8,3657.6,2.73402505]
[1754316921308,0.1368,3657.7,3657.6,2.73402505]
[1754316921509,0.1368,3657.7,3657.4,2.73411565]
[1754316921721,0.001,3657.9,3657.2,2.73432544]
[1754316921924,0.001,3657.9,3657.2,2.73425827]
[1754316922233,0.001,3657.9,3657.1,4.17088634]
[1754316922439,0.1368,3657.2,3656.9,2.73454435]
[1754316922641,0.1368,3657.2,3657.1,2.73436046]
[1754316922998,0.9424,3657.8,3657.1,4.17086046]
[1754316923203,0.9424,3657.8,3657.4,2.73414989]
[1754316923418,0.1368,3657.4,3657.1,1.4365]
[1754316923619,0.1368,3657.4,3656.7,5.9715]
[1754316923818,0.1368,3657.2,3656.7,6.1083]
[1754316924129,0.1368,3657.2,3657.1,2.73440704]
[1754316924327,0.001,3657.9,3657.1,2.73440704]
[1754316924551,0.001,3657.9,3657.8,2.73388375]
[1754316924849,0.1378,3657.9,3657.8,2.73388375]
[1754316925226,0.001,3657.9,3657.8,4.17038375]
[1754316925430,0.001,3657.9,3657.8,4.30718375]
[1754316926021,1e-08,3657.9,3657.8,7.88452258]
[1754316926221,1e-08,3657.9,3657.8,7.85718375]
[1754316927129,1e-08,3657.9,3657.8,12.38918375]
[1754316928064,1e-08,3657.9,3657.8,12.38818375]
[1754316928453,1e-08,3657.9,3657.8,8.83718375]
[1754316928858,1e-08,3657.9,3657.8,9.38718375]
[1754316929028,1e-08,3657.9,3657.8,8.83718375]
[1754316929382,1e-08,3657.9,3657.8,4.30718375]
[1754316929535,1e-08,3657.9,3657.8,8.83718375]
[1754316929864,1e-08,3657.9,3657.8,12.25038375]
[1754316930035,1e-08,3657.9,3657.8,12.38718375]
[1754316930232,1e-08,3657.9,3657.8,7.30718375]
[1754316930430,1e-08,3657.9,3657.8,11.83618375]
[1754316930790,1e-08,3658.8,3658.7,2.73321124]
[1754316931065,1e-08,3658.8,3658.7,7.26221124]
[1754316931271,1e-08,3658.8,3658.7,8.63761124]
[1754316931467,1e-08,3658.8,3658.7,7.26121124]
[1754316931973,2.73321124,3658.7,3657.4,0.20789892]
[1754316932270,0.921,3658.6,3658.3,2.7334944]
[1754316932567,0.00100001,3658.8,3658.7,2.73321124]
[1754316932746,0.00100001,3658.8,3658.0,1.3754]
[1754316932747,0.00100001,3658.8,3658.0,4.10909022]
[1754316932950,0.00100001,3658.8,3658.5,2.73335885]
[1754316933274,0.00100001,3658.8,3658.1,4.528]
[1754316933275,0.00100001,3658.8,3658.7,2.73321124]
[1754316934638,0.92200001,3658.8,3657.9,0.931]
[1754316934877,0.92200001,3658.8,3657.8,0.4444]
[1754316935082,2.73326778,3658.7,3657.4,0.002]
[1754316935241,0.4443,3658.7,3657.7,4.526]
[1754316935442,0.921,3658.7,3658.6,2.73328595]
[1754316935652,0.921,3658.7,3657.4,0.933]
[1754316935857,1.3653,3658.7,3658.1,2.73364334]
[1754316936142,0.921,3658.6,3658.1,2.73359481]
[1754316936678,1.3653,3658.5,3658.0,2.73371736]
[1754316936873,0.921,3658.4,3658.1,2.7336564]
[1754316937039,0.921,3658.3,3657.5,4.525]
[1754316937240,0.921,3658.3,3657.5,7.25910799]
[1754316937755,2.7341513,3658.8,3657.5,7.25910799]
[1754316937756,0.921,3658.7,3658.3,2.73350669]
[1754316937963,3.09945016,3658.8,3658.2,2.73355585]
[1754316938163,0.821148,3659.7,3657.7,3.66491736]
[1754316938338,4.524,3659.6,3658.2,2.73358482]
[1754316938542,7.25655105,3659.6,3658.3,3.6645101]
[1754316938779,0.821148,3659.7,3658.3,2.7335101]
[1754316938948,4.524,3659.9,3659.4,2.73266491]
[1754316939149,4.524,3659.9,3659.3,2.73275536]
[1754316939476,0.821147,3659.8,3658.7,0.931]
[1754316939655,0.821147,3659.8,3659.3,2.73273032]
[1754316939852,0.821147,3659.8,3659.4,2.73268444]
[1754316940041,1.556947,3659.8,3659.4,2.73268444]
[1754316940249,0.4418,3660.0,3659.5,2.73259928]
[1754316940454,5.7006,3660.0,3659.5,2.73259928]
[1754316940682,0.1368,3659.6,3659.3,2.73273703]
[1754316940849,0.1368,3659.4,3659.3,2.73276309]
[1754316941378,0.1368,3659.4,3659.3,3.66376309]
[1754316941700,0.001,3659.9,3659.8,2.73238974]
[1754316941847,0.1378,3659.9,3659.8,2.73238974]
[1754316942052,2.7313548,3661.2,3659.8,2.73238974]
[1754316942053,0.1368,3660.3,3660.2,2.73209114]
[1754316942253,0.7358,3661.2,3661.0,2.73149412]
[1754316942457,7.7436,3661.9,3660.2,1.3754]
[1754316942458,6.19602971,3661.4,3660.7,2.73169869]
[1754316942698,0.89872591,3661.1,3660.7,2.73169869]
[1754316942863,0.16292591,3661.1,3661.0,2.73149412]
[1754316943071,0.16292591,3661.1,3660.2,1.3754]
[1754316943278,30.0,3661.0,3659.3,3.66373292]
[1754316943456,2.73164335,3660.8,3659.2,7.25377115]
[1754316943656,2.73231642,3659.9,3659.2,2.73279122]
[1754316943859,0.7358,3660.1,3658.9,5.452]
[1754316944061,0.7358,3660.1,3659.5,2.73256281]
[1754316944283,4.521,3660.7,3658.9,0.931]
[1754316944284,1.556567,3661.5,3660.8,2.73163434]
[1754316944601,5.69247184,3661.9,3661.0,2.73149412]
[1754316944759,2.730913,3661.8,3661.0,2.73149412]
[1754316944958,9.60091828,3661.9,3661.0,2.73149412]
[1754316945156,0.820624,3661.9,3661.0,2.73149412]
[1754316945380,0.0299,3662.0,3661.3,2.73127031]
[1754316945566,1e-08,3662.0,3661.9,2.73082279]
[1754316946376,1e-08,3662.0,3661.9,3.66182279]
[1754316946577,1e-08,3662.0,3661.9,4.10622279]
[1754316947181,1e-08,3662.0,3661.9,2.73082279]
[1754316947666,1e-08,3662.0,3661.7,4.519]
[1754316947861,1e-08,3662.0,3661.6,2.73097227]
[1754316948099,1e-08,3662.0,3661.7,2.73097195]
[1754316948399,1e-08,3662.0,3661.9,2.73082279]
[1754316948617,1e-08,3662.0,3661.9,7.24882279]
[1754316948910,1e-08,3662.0,3661.9,8.17982279]
[1754316949272,1e-08,3662.0,3661.9,2.73082279]
[1754316949709,1e-08,3662.0,3661.9,4.10622279]
[1754316950076,1e-08,3662.0,3661.9,8.62322279]
[1754316950602,0.004,3662.4,3662.3,2.73052453]
[1754316950807,0.004,3662.4,3662.3,7.24752453]
[1754316951183,0.004,3662.4,3662.3,8.62292453]
[1754316951481,1e-08,3662.4,3662.3,9.17292453]
[1754316951682,1e-08,3662.4,3662.3,12.17292453]
[1754316951883,1e-08,3662.4,3662.3,5.73052453]
[1754316952075,1e-08,3662.4,3662.3,8.17652453]
[1754316952277,1e-08,3662.4,3662.3,8.75772453]
[1754316952807,1e-08,3662.4,3662.3,4.24272453]
[1754316953343,1e-08,3662.4,3662.3,8.75772453]
[1754316953808,1e-08,3662.4,3662.3,7.24552453]
[1754316954296,1e-08,3662.4,3662.3,4.515]
[1754316954504,1e-08,3662.4,3661.7,0.1368]
[1754316954687,0.1368,3662.2,3661.8,2.73084711]
[1754316955009,0.1368,3662.1,3662.0,2.73074822]
[1754316955325,0.1368,3662.1,3661.9,2.73081593]
[1754316955478,0.1368,3662.1,3661.8,2.73085913]
[1754316955809,0.1368,3661.9,3661.8,2.73085913]
[1754316956178,0.1368,3661.9,3659.8,13.60956715]
[1754316956380,1.1776,3662.3,3661.8,2.7308244]
[1754316956592,1.1776,3662.3,3661.9,2.73075358]
[1754316956788,1.1776,3662.3,3662.0,2.7307439]
[1754316956989,1e-08,3662.4,3661.4,5.444]
[1754316957194,0.1368,3661.9,3661.8,2.73089737]
[1754316958178,0.1368,3662.1,3662.0,2.73074822]
[1754316958731,1e-08,3662.4,3662.3,2.73052453]
[1754316959218,1e-08,3662.4,3662.3,4.24272453]
[1754316959580,1e-08,3662.4,3662.3,7.37932453]
[1754316959785,0.13680001,3662.4,3662.3,2.73052453]
[1754316959981,1e-08,3662.4,3662.3,2.73052453]
[1754316960189,1e-08,3662.4,3662.3,3.66152453]
[1754316960436,1e-08,3662.4,3662.3,7.24252453]
[1754316960619,0.13680001,3662.4,3662.3,2.73052453]
[1754316961130,0.13680001,3662.4,3662.3,8.75372453]
[1754316961131,1e-08,3662.4,3662.3,8.75372453]
[1754316962816,1e-08,3662.4,3662.3,12.30372453]
[1754316963127,1e-08,3662.4,3662.3,7.24272453]
[1754316963333,1e-08,3662.4,3662.3,11.75272453]
[1754316963626,1e-08,3662.8,3662.7,2.73022633]
[1754316963798,1e-08,3662.8,3662.7,8.62772633]
[1754316964204,1e-08,3662.8,3662.7,8.76452633]
[1754316964507,1e-08,3662.8,3662.7,8.76352633]
[1754316964922,1e-08,3662.8,3662.7,4.25452633]
[1754316965122,1e-08,3662.8,3662.7,8.30582633]
[1754316965539,1e-08,3662.8,3662.7,2.86702633]
[1754316965714,1e-08,3662.8,3662.7,7.37602633]
[1754316965909,1e-08,3662.8,3662.7,4.25452633]
[1754316966126,1e-08,3662.8,3662.7,3.79682633]
[1754316966326,1e-08,3662.8,3662.7,8.30582633]
[1754316966522,1e-08,3662.8,3662.7,3.79682633]
[1754316966846,1e-08,3662.8,3662.7,7.23922633]
[1754316967057,1e-08,3662.8,3662.7,2.73022633]
[1754316967352,1e-08,3662.8,3662.7,7.23822633]
[1754316967643,0.13680001,3662.8,3662.5,4.508]
[1754316967842,0.13680001,3662.8,3662.6,2.73024594]
[1754316967843,0.87730001,3662.8,3662.6,2.73024594]
[1754316968146,0.87730001,3662.8,3661.5,0.002]
[1754316968147,1e-08,3662.8,3661.5,0.002]
[1754316968380,0.1368,3662.3,3662.2,2.73059322]
[1754316968512,0.9375,3662.7,3662.2,2.73059322]
[1754316968718,0.1368,3662.3,3662.2,2.73059322]
[1754316969115,1e-08,3662.8,3662.4,2.73040063]
[1754316969422,0.7405,3662.7,3662.1,4.508]
[1754316969622,0.9375,3662.7,3662.1,2.73066194]
[1754316970026,0.9375,3662.7,3662.2,2.73059205]
[1754316970240,1.1823,3662.6,3662.2,2.73059205]
[1754316970451,0.7405,3662.5,3661.8,4.507]
[1754316970658,1.1823,3662.5,3662.2,2.73054296]
[1754316970824,1.1823,3662.5,3661.7,4.508]
[1754316971023,1.1823,3662.5,3662.2,2.73054605]
[1754316971230,0.7405,3662.4,3661.7,4.507]
[1754316971416,1e-08,3662.8,3661.8,2.73089737]
[1754316971616,1e-08,3662.8,3661.7,4.507]
[1754316971811,1e-08,3662.8,3662.3,2.73052257]
[1754316971812,1.1823,3662.7,3662.3,2.73052257]
[1754316972025,1e-08,3662.8,3661.7,2.73097195]
[1754316972229,1e-08,3662.8,3661.7,0.02730971]
[1754316972452,1.1823,3662.7,3661.6,5.4368]
[1754316972644,1.1823,3662.7,3662.3,2.73051818]
[1754316972840,1e-08,3662.8,3662.5,2.73031969]
[1754316973042,1e-08,3662.8,3662.7,2.73022633]
[1754316973975,1e-08,3662.8,3662.2,2.73059909]
[1754316974180,0.4418,3662.7,3662.1,2.73062146]
[1754316974323,1.1823,3662.7,3661.6,3.66084343]
[1754316974637,1.1823,3662.7,3661.6,0.9298]
[1754316975041,2.73035928,3662.6,3661.9,2.73077323]
[1754316975249,3.91254618,3662.7,3662.0,2.73074475]
[1754316975553,1e-08,3662.8,3662.2,2.73053758]
[1754316975927,1e-08,3662.8,3662.3,2.73051078]
[1754316976241,1e-08,3662.8,3662.0,0.9298]
[1754316976558,1e-08,3662.8,3662.0,2.73073357]
[1754316976737,2.73027842,3662.7,3662.0,2.73073357]
[1754316976939,2.73036494,3662.6,3661.9,2.73080887]
[1754316977263,2.73025305,3662.7,3662.1,2.73066646]
[1754316977558,2.73030977,3662.6,3662.0,2.73072361]
[1754316977748,2.73022866,3662.7,3662.1,2.73065532]
[1754316977954,0.44180001,3662.8,3661.6,0.9298]
[1754316978156,2.73035167,3662.6,3661.9,2.73076372]
[1754316978343,2.73025246,3662.7,3661.6,0.9298]
[1754316978541,2.73025246,3662.7,3662.0,2.73069995]
[1754316978750,0.44180001,3662.8,3661.6,0.9298]
[1754316978751,3.17197167,3662.8,3661.6,0.9298]
[1754316978951,0.44180001,3662.8,3662.2,2.73053605]
[1754316979164,0.44180001,3662.8,3661.6,0.9298]
[1754316979165,3.17195435,3662.8,3661.9,2.73080839]
[1754316979461,0.1368,3661.9,3661.8,2.73089737]
[1754316980465,0.1368,3661.9,3661.8,3.66069737]
[1754316980690,0.1368,3661.9,3661.5,0.002]
[1754316980860,0.1368,3661.6,3661.5,0.002]
[1754316981184,1e-08,3662.8,3662.1,2.73061042]
[1754316981575,4.504,3662.7,3662.1,2.73061042]
[1754316981773,1e-08,3662.8,3661.7,0.9298]
[1754316981974,5.2445,3662.7,3661.9,2.73075656]
[1754316982179,2.73032719,3662.6,3661.9,2.73077019]
[1754316982357,0.1368,3662.0,3661.9,2.73077019]
[1754316982966,0.1368,3662.0,3661.9,3.66057019]
[1754316983170,0.1368,3662.0,3661.9,2.73082279]
[1754316983469,0.1368,3662.0,3661.9,3.66062279]
[1754316984390,0.44180001,3662.8,3661.9,3.66062279]
[1754316984391,1e-08,3662.8,3662.7,2.73022633]
[1754316984759,0.13680001,3662.8,3662.7,3.66002633]
[1754316985372,0.13680001,3662.8,3662.7,2.73022633]
[1754316986676,0.13680001,3662.8,3662.7,3.66002633]
[1754316987079,0.13680001,3662.8,3662.7,2.73022633]
[1754316988069,0.13680001,3662.8,3662.2,3.18826012]
[1754316988070,0.13680001,3662.8,3662.2,2.73059909]
[1754316988270,0.1368,3662.6,3661.9,2.73082279]
[1754316988489,0.1368,3662.2,3662.1,2.73067365]
[1754316988692,2.73016202,3662.8,3662.2,2.73055285]
[1754316988990,2.73016202,3662.8,3662.0,2.73074822]
[1754316988991,0.1368,3662.1,3662.0,2.73074293]
[1754316989359,1e-08,3662.8,3662.7,2.73022633]
[1754316989553,1e-08,3662.8,3662.6,2.73028038]
[1754316989778,1e-08,3662.8,3662.7,2.73022633]
[1754316990203,0.13680001,3662.8,3662.7,2.73022633]
[1754316990388,0.13680001,3662.8,3662.7,3.66002633]
[1754316990697,0.13680001,3662.8,3662.7,4.11772633]
[1754316991862,1e-08,3662.8,3662.7,4.11772633]
[1754316995865,1e-08,3662.8,3662.7,4.32005741]
[1754316996310,1e-08,3662.8,3662.7,3.70822633]
[1754316996618,1e-08,3662.8,3662.7,8.20622633]
[1754316996763,1e-08,3662.8,3662.6,2.7302425]
[1754316996959,1e-08,3662.8,3662.7,2.73022633]
[1754316997601,1e-08,3662.8,3662.7,4.16542633]
[1754316998098,1e-08,3662.8,3662.7,8.66242633]
[1754316999396,1e-08,3662.8,3662.7,4.16542633]
[1754316999617,2.0,3665.0,3663.7,2.72940906]
[1754316999923,2.0,3665.0,3662.7,1.67001764]
[1754316999924,0.1368,3664.8,3663.9,2.72932103]
[1754317000070,5.6468,3664.7,3663.4,2.72965278]
[1754317000271,3.0,3664.5,3662.5,2.73032129]
[1754317000531,3.0,3663.9,3661.7,0.978]
[1754317000820,2.72948112,3663.7,3661.7,0.978]
[1754317000973,2.72999584,3663.1,3662.3,2.73051975]
[1754317001172,4.496,3663.0,3661.9,2.73075727]
[1754317001405,4.496,3663.0,3661.8,30.15663563]
[1754317001617,2.73024111,3662.7,3661.9,2.73082279]
[1754317001772,3.87624279,3662.9,3661.8,26.968549]
[1754317001973,1.1461,3662.9,3662.2,2.73054709]
[1754317002184,1.1461,3662.9,3661.8,26.968549]
[1754317002385,2.73015179,3662.8,3661.8,29.6994177]
[1754317002681,1.1461,3662.9,3661.8,26.968549]
[1754317003219,4.496,3662.8,3661.9,0.978]
[1754317003389,4.496,3662.8,3662.2,2.73059156]
[1754317003584,0.4418,3663.2,3661.9,0.928]
[1754317003842,0.4418,3663.7,3662.0,0.48450748]
[1754317003990,0.4418,3664.1,3662.0,0.48450748]
[1754317004185,4.495,3664.0,3663.3,2.72972785]
[1754317004495,0.4418,3664.6,3662.5,4.495]
[1754317004724,0.7543,3664.7,3663.4,0.4572]
[1754317004892,2.0,3665.0,3663.5,2.72963013]
[1754317005211,2.0,3665.0,3664.9,2.72858741]
[1754317005954,2.0,3665.0,3663.7,2.72948112]
[1754317005955,2.0,3665.0,3664.8,2.72865707]
[1754317006423,0.1368,3664.9,3664.4,2.72889736]
[1754317006603,2.0,3665.0,3664.6,2.7287566]
[1754317006925,2.0,3665.0,3664.7,2.72873482]
[1754317007092,0.1368,3664.5,3664.4,2.728902]
[1754317007725,0.1368,3664.5,3664.4,3.706902]
[1754317008120,0.1368,3664.5,3664.4,4.164102]
[1754317008624,2.0,3665.0,3664.9,2.72858741]
[1754317008935,2.1368,3665.0,3664.5,2.72888525]
[1754317009094,2.1368,3665.0,3664.7,2.72873186]
[1754317009095,2.0,3665.0,3664.7,2.72873186]
[1754317009438,2.0,3665.0,3664.9,2.72858741]
[1754317009739,0.1368,3664.7,3664.6,2.72875271]
[1754317010348,0.1368,3664.7,3664.6,3.70675271]
[1754317011134,0.1368,3664.7,3664.2,0.4572]
[1754317011429,0.1368,3664.7,3664.6,2.72881078]
[1754317011632,0.1368,3664.7,3664.3,0.4572]
[1754317011849,6.492,3665.0,3664.5,2.72888525]
[1754317011997,0.1368,3664.5,3664.4,2.72895972]
[1754317012396,0.1368,3664.5,3664.4,3.18615972]
[1754317012639,0.1368,3664.5,3664.4,4.16415972]
[1754317013254,0.1368,3664.5,3664.1,2.72913549]
[1754317013415,2.72867332,3664.8,3664.2,2.72906261]
[1754317013728,0.1368,3664.1,3664.0,2.72925764]
[1754317014139,0.1368,3664.1,3664.0,3.70725764]
[1754317014646,4.491,3664.7,3664.6,2.72881078]
[1754317015001,0.1368,3664.7,3664.6,2.72881078]
[1754317015335,0.1368,3664.7,3664.3,0.978]
[1754317015336,0.1368,3664.7,3664.3,2.72898732]
[1754317015663,0.1368,3664.5,3663.8,1.1148]
[1754317015836,1.1961,3664.7,3664.2,2.72908311]
[1754317016149,4.49,3664.7,3664.3,2.72900457]
[1754317016739,0.1368,3664.4,3664.3,2.72900457]
[1754317017513,0.1368,3664.4,3664.3,4.16420457]
[1754317017716,4.489,3664.6,3664.5,2.72888525]
[1754317017941,2.0,3665.0,3664.9,2.72858741]
[1754317018149,2.1368,3665.0,3664.9,4.16378741]
[1754317018517,2.0,3665.0,3664.9,4.16378741]
[1754317019370,2.0,3665.0,3664.9,4.30058741]
[1754317019712,2.0,3665.0,3664.9,8.78858741]
[1754317020229,2.0,3665.0,3664.9,1.1148]
[1754317020434,2.0,3665.0,3664.7,2.72867165]
[1754317020638,0.7543,3664.9,3664.1,0.978]
[1754317020841,0.7543,3664.9,3663.9,4.488]
[1754317021031,0.7543,3664.9,3664.3,2.72898596]
[1754317021247,4.487,3664.8,3664.3,2.72898596]
[1754317021420,4.487,3664.8,3664.1,2.72915805]
[1754317021421,4.487,3664.8,3663.8,4.487]
[1754317021624,2.0,3665.0,3664.0,2.72925764]
[1754317021830,2.0,3665.0,3664.9,2.72858741]
[1754317022046,2.0,3665.0,3664.8,2.72861292]
[1754317022373,2.0,3665.0,3664.9,2.72858741]
[1754317022579,5.92463409,3665.0,3664.3,2.72901947]
[1754317022772,2.72859221,3664.9,3664.2,2.72909582]
[1754317022919,3.1961,3665.0,3664.4,2.72890024]
[1754317023119,2.0,3665.0,3664.1,2.72918315]
[1754317023435,4.487,3664.9,3664.2,2.72910867]
[1754317023633,4.487,3664.9,3664.1,1.3725]
[1754317023844,4.487,3664.9,3664.4,2.72892936]
[1754317024160,2.0,3665.0,3664.4,2.72892936]
[1754317024161,2.0,3665.0,3664.7,2.72873103]
[1754317024359,6.486,3665.0,3664.1,0.4373]
[1754317024522,2.0,3665.0,3664.7,2.72873259]
[1754317024920,4.486,3664.9,3664.7,2.72870562]
[1754317025356,4.486,3664.9,3664.8,2.72866186]
[1754317025545,4.486,3664.9,3664.8,2.72862223]
[1754317025858,4.486,3664.9,3664.3,0.9352]
[1754317025859,6.486,3665.0,3664.9,2.72858741]
[1754317026054,6.486,3665.0,3664.3,0.9352]
[1754317026260,6.486,3665.0,3664.8,2.7286497]
[1754317026428,6.486,3665.0,3664.3,0.9352]
[1754317026624,6.486,3665.0,3664.8,2.72865417]
[1754317026825,2.0,3665.0,3664.9,2.72858741]
[1754317028151,2.0,3665.0,3664.9,4.10108741]
[1754317028349,2.0,3665.0,3664.9,3.66378741]
[1754317028663,2.0,3665.0,3664.9,2.72858741]
[1754317029061,2.0,3665.0,3663.6,2.7295017]
[1754317029264,2.0,3665.0,3664.2,0.9352]
[1754317029431,2.0,3665.0,3664.7,2.7286631]
[1754317029632,2.0,3665.0,3664.6,2.72880311]
[1754317029866,2.0,3665.0,3664.4,2.7289052]
[1754317030162,4.484,3664.9,3663.0,2.72997978]
[1754317030366,4.484,3664.9,3664.5,2.72887754]
[1754317030669,2.0,3665.0,3664.9,2.72858741]
[1754317031164,2.1368,3665.0,3664.9,2.72858741]
[1754317031557,2.1368,3665.0,3664.9,4.10108741]